bitfinex/quotes_BTCUSD_20250403
["timestamp","ask_amount","ask_price","bid_price","bid_amount"]
[1743694650803,0.244477,81808.0,81801.0,0.12290297]
[1743694651006,0.244477,81808.0,81801.0,0.36739797]
[1743694651209,0.248473,81809.0,81801.0,0.36739797]
[1743694651414,0.248473,81809.0,81801.0,0.12290297]
[1743694651763,0.248473,81809.0,81801.0,0.36739797]
[1743694651925,0.004,81809.0,81803.0,0.244487]
[1743694652110,0.004,81809.0,81808.0,0.244474]
[1743694652305,0.004,81809.0,81808.0,0.37959997]
[1743694652506,0.244475,81808.0,81796.0,0.244589]
[1743694652756,0.004,81809.0,81800.0,0.36739997]
[1743694653069,0.004,81809.0,81801.0,0.012224]
[1743694653277,0.004,81809.0,81802.0,0.12290297]
[1743694653498,0.004,81809.0,81804.0,0.244485]
[1743694653703,0.004,81809.0,81804.0,0.244486]
[1743694653895,0.004,81809.0,81803.0,0.244489]
[1743694654262,0.004,81809.0,81802.0,0.13512697]
[1743694654263,0.004,81809.0,81802.0,0.12290297]
[1743694654420,0.244492,81803.0,81794.0,0.012225]
[1743694654625,0.244486,81805.0,81803.0,4e-05]
[1743694654826,0.25671,81804.0,81803.0,4e-05]
[1743694655386,0.244486,81804.0,81803.0,4e-05]
[1743694656429,0.59671,81804.0,81803.0,4e-05]
[1743694658144,0.31114758,81804.0,81803.0,4e-05]
[1743694658272,0.55563358,81804.0,81803.0,4e-05]
[1743694658956,0.260696,81809.0,81803.0,4e-05]
[1743694659196,0.24448,81806.0,81803.0,4e-05]
[1743694659375,0.24448,81807.0,81803.0,4e-05]
[1743694659844,0.004,81809.0,81804.0,0.244484]
[1743694660359,0.004,81809.0,81808.0,0.244474]
[1743694660564,0.004,81809.0,81808.0,0.37959997]
[1743694662118,0.004,81809.0,81808.0,0.43914082]
[1743694663178,0.004,81809.0,81808.0,0.39414082]
[1743694664724,0.004,81809.0,81808.0,0.44298082]
[1743694665554,1e-06,81809.0,81808.0,0.45725315]
[1743694665767,0.004,81839.0,81838.0,0.256604]
[1743694665974,0.004,81839.0,81838.0,0.37950697]
[1743694666359,0.004,81839.0,81838.0,0.39404782]
[1743694669748,0.004,81839.0,81838.0,0.39408782]
[1743694672315,0.004,81839.0,81838.0,0.73908782]
[1743694672717,0.004,81839.0,81838.0,0.39908782]
[1743694673084,0.004,81839.0,81838.0,0.39408782]
[1743694676060,0.004,81839.0,81838.0,0.54828782]
[1743694678370,0.004,81839.0,81838.0,0.37954697]
[1743694678749,0.004,81839.0,81838.0,0.12294297]
[1743694679384,0.004,81839.0,81838.0,0.37954697]
[1743694680214,0.004,81839.0,81838.0,0.12294297]
[1743694681399,0.004,81839.0,81838.0,0.37954697]
[1743694682201,0.004,81839.0,81838.0,0.12294297]
[1743694682575,0.004,81839.0,81838.0,4e-05]
[1743694682778,0.004,81839.0,81838.0,0.37954697]
[1743694687824,0.004,81839.0,81838.0,0.36732797]
[1743694688015,0.004,81839.0,81838.0,0.13516197]
[1743694688204,0.004,81839.0,81838.0,4e-05]
[1743694688353,0.004,81839.0,81838.0,0.256644]
[1743694688558,0.004,81839.0,81838.0,4e-05]
[1743694689033,0.645901,81839.0,81838.0,4e-05]
[1743694692168,0.76880397,81839.0,81838.0,4e-05]
[1743694692382,0.256691,81810.0,81801.0,0.01454085]
[1743694692583,0.256691,81810.0,81791.0,0.02124402]
[1743694692779,0.256694,81809.0,81805.0,0.00382006]
[1743694693755,0.596694,81809.0,81805.0,0.00382006]
[1743694694400,0.596694,81809.0,81788.0,0.244534]
[1743694694632,0.596694,81809.0,81789.0,0.24453]
[1743694694864,0.596694,81809.0,81788.0,0.244534]
[1743694695033,0.596694,81809.0,81783.0,4e-05]
[1743694695268,0.596694,81809.0,81784.0,0.012227]
[1743694695452,0.596694,81809.0,81788.0,0.012226]
[1743694695584,0.596694,81809.0,81789.0,0.012226]
[1743694695786,0.596694,81809.0,81795.0,0.24451]
[1743694695992,0.596694,81809.0,81795.0,0.256738]
[1743694696235,0.596694,81809.0,81797.0,0.244506]
[1743694696435,0.049,81813.0,81808.0,8e-05]
[1743694696605,0.244458,81814.0,81808.0,8e-05]
[1743694696808,0.244462,81812.0,81808.0,8e-05]
[1743694697009,0.25668,81814.0,81808.0,8e-05]
[1743694697010,0.012223,81810.0,81808.0,8e-05]
[1743694697373,0.34,81814.0,81808.0,8e-05]
[1743694697567,0.34,81814.0,81809.0,0.256694]
[1743694697786,0.012222,81813.0,81808.0,8e-05]
[1743694697977,0.012223,81809.0,81808.0,8e-05]
[1743694698488,0.24447,81810.0,81808.0,8e-05]
[1743694698711,0.012222,81816.0,81808.0,0.012303]
[1743694698919,0.012222,81815.0,81808.0,8e-05]
[1743694699091,0.244463,81812.0,81808.0,8e-05]
[1743694699297,0.244459,81813.0,81808.0,8e-05]
[1743694699503,0.012222,81816.0,81808.0,8e-05]
[1743694699665,0.244466,81811.0,81808.0,8e-05]
[1743694699873,0.24447,81810.0,81808.0,8e-05]
[1743694700061,0.244463,81812.0,81808.0,8e-05]
[1743694700504,0.244471,81809.0,81808.0,8e-05]
[1743694700860,0.256694,81809.0,81808.0,8e-05]
[1743694701588,0.256688,81811.0,81808.0,8e-05]
[1743694701784,0.244469,81810.0,81808.0,8e-05]
[1743694702027,0.244471,81810.0,81808.0,8e-05]
[1743694702235,0.244457,81814.0,81808.0,8e-05]
[1743694702436,0.012222,81816.0,81808.0,0.244554]
[1743694702634,1.05588,81818.0,81812.0,0.012223]
[1743694702835,0.01954085,81849.0,81809.0,0.012223]
[1743694702836,0.0493,81829.0,81820.0,0.012221]
[1743694703036,0.012221,81825.0,81815.0,0.012222]
[1743694703196,0.012221,81825.0,81816.0,0.12290297]
[1743694703395,0.244433,81822.0,81816.0,0.12290297]
[1743694703673,0.256666,81818.0,81816.0,0.12290297]
[1743694703882,0.244456,81815.0,81809.0,0.244471]
[1743694704059,0.012222,81816.0,81810.0,0.12290297]
[1743694705493,0.244469,81810.0,81808.0,8e-05]
[1743694705693,0.244458,81814.0,81808.0,0.244554]
[1743694706029,0.012222,81815.0,81808.0,8e-05]
[1743694706243,0.012223,81812.0,81808.0,8e-05]
[1743694706657,0.012223,81811.0,81808.0,8e-05]
[1743694706859,0.256691,81811.0,81808.0,8e-05]
[1743694707015,0.244457,81814.0,81808.0,0.244552]
[1743694707217,0.06178798,81872.0,81808.0,0.244552]
[1743694707218,0.012221,81821.0,81815.0,0.244453]
[1743694707496,0.34,81825.0,81820.0,0.012221]
[1743694707683,0.012221,81822.0,81813.0,0.256681]
[1743694707862,0.34,81819.0,81814.0,0.244456]
[1743694708060,0.012221,81825.0,81814.0,0.012222]
[1743694708258,0.596644,81826.0,81817.0,0.012222]
[1743694708460,0.244432,81823.0,81818.0,0.244444]
[1743694708981,0.352221,81826.0,81819.0,0.244441]
[1743694709202,0.244429,81824.0,81819.0,0.244441]
[1743694709350,0.244431,81823.0,81818.0,0.244444]
[1743694709553,0.244446,81818.0,81815.0,0.12290297]
[1743694709754,0.244446,81818.0,81806.0,0.244478]
[1743694709988,0.256691,81810.0,81808.0,0.12298297]
[1743694710187,0.256694,81809.0,81808.0,8e-05]
[1743694710369,0.012222,81816.0,81808.0,8e-05]
[1743694710567,0.244462,81813.0,81808.0,8e-05]
[1743694710747,0.012222,81815.0,81808.0,0.012303]
[1743694710952,0.012222,81818.0,81809.0,0.012223]
[1743694711208,0.012222,81819.0,81813.0,0.244459]
[1743694711509,0.244445,81818.0,81813.0,0.244459]
[1743694711709,0.244452,81816.0,81810.0,0.256691]
[1743694711908,0.244457,81814.0,81809.0,0.244466]
[1743694712091,0.244447,81818.0,81813.0,0.244459]
[1743694712895,0.012222,81816.0,81809.0,0.256689]
[1743694713110,0.34,81822.0,81821.0,0.244436]
[1743694713347,0.34,81822.0,81820.0,0.244438]
[1743694713550,0.34,81822.0,81819.0,0.256661]
[1743694713769,0.06152,81829.0,81822.0,0.244431]
[1743694713994,0.06152,81829.0,81821.0,0.244433]
[1743694713995,0.244421,81826.0,81821.0,0.244433]
[1743694714187,0.244426,81825.0,81819.0,0.256661]
[1743694714391,0.244431,81823.0,81817.0,0.244439]
[1743694714530,0.244433,81822.0,81817.0,0.244445]
[1743694714733,0.012222,81819.0,81793.0,0.06084085]
[1743694714957,0.256694,81809.0,81796.0,8e-05]
[1743694715140,0.256694,81809.0,81802.0,0.244492]
[1743694715349,0.34,81814.0,81805.0,0.012224]
[1743694715594,0.244471,81809.0,81803.0,0.256753]
[1743694715760,0.244471,81809.0,81804.0,0.244486]
[1743694715957,0.244469,81810.0,81803.0,0.012264]
[1743694716157,0.34,81816.0,81807.0,0.244471]
[1743694716338,0.584437,81821.0,81816.0,0.244448]
[1743694716730,0.34,81821.0,81816.0,0.244449]
[1743694716898,0.34,81821.0,81819.0,0.244441]
[1743694717100,0.24443,81823.0,81819.0,0.244441]
[1743694717258,1.0562,81828.0,81818.0,0.256664]
[1743694717492,1.300615,81828.0,81823.0,0.012221]
[1743694717660,1.0562,81828.0,81824.0,0.244426]
[1743694718006,0.244399,81834.0,81828.0,0.244412]
[1743694718207,0.244403,81832.0,81827.0,0.256632]
[1743694718433,0.01222,81833.0,81826.0,0.24442]
[1743694718552,0.35222,81833.0,81827.0,0.244417]
[1743694718754,0.244405,81832.0,81826.0,0.24442]
[1743694719103,0.244405,81832.0,81827.0,0.244417]
[1743694719336,0.34,81833.0,81828.0,0.01222]
[1743694719511,0.24445,81816.0,81808.0,0.05592183]
[1743694719686,0.012221,81822.0,81817.0,0.244447]
[1743694719864,0.01222,81828.0,81818.0,0.012222]
[1743694720065,0.244423,81826.0,81818.0,0.012222]
[1743694720280,0.244421,81826.0,81822.0,0.244432]
[1743694720487,0.5844,81833.0,81827.0,0.01222]
[1743694720691,0.244403,81832.0,81828.0,0.244415]
[1743694721032,0.34,81833.0,81827.0,0.256635]
[1743694721190,0.244389,81837.0,81832.0,0.256621]
[1743694721392,0.244393,81836.0,81829.0,0.12290297]
[1743694721612,0.012219,81836.0,81829.0,0.12290297]
[1743694721791,0.244409,81831.0,81829.0,0.12290297]
[1743694721986,0.244398,81834.0,81829.0,0.12290297]
[1743694722213,0.012219,81835.0,81829.0,0.12290297]
[1743694722411,0.244427,81824.0,81818.0,0.012222]
[1743694722579,0.012221,81822.0,81819.0,0.12290297]
[1743694722779,0.012221,81822.0,81811.0,0.01146273]
[1743694722780,0.012222,81819.0,81811.0,0.01146273]
[1743694723000,0.244442,81819.0,81814.0,0.244454]
[1743694723203,0.244442,81819.0,81815.0,0.12290297]
[1743694723375,0.01222,81828.0,81819.0,0.012222]
[1743694723617,0.012221,81821.0,81815.0,0.12290297]
[1743694723792,0.012221,81826.0,81815.0,0.012222]
[1743694723995,0.244426,81825.0,81820.0,0.244438]
[1743694724219,0.244406,81831.0,81824.0,0.244426]
[1743694724401,0.244403,81832.0,81827.0,0.244415]
[1743694724624,0.012219,81836.0,81829.0,0.01222]
[1743694724820,0.012219,81836.0,81830.0,0.12290297]
[1743694725137,0.244406,81832.0,81830.0,0.12290297]
[1743694725340,0.012222,81817.0,81811.0,0.0038209]
[1743694725543,0.012221,81821.0,81812.0,0.36736497]
[1743694725544,0.256667,81818.0,81812.0,0.36736497]
[1743694725686,0.256653,81823.0,81815.0,0.012222]
[1743694725887,0.244444,81819.0,81816.0,0.12290297]
[1743694726113,0.244436,81821.0,81816.0,0.12290297]
[1743694726308,0.244441,81820.0,81816.0,0.12290297]
[1743694726641,0.01222,81827.0,81816.0,0.12290297]
[1743694726642,0.01222,81827.0,81816.0,0.13512497]
[1743694726861,0.012221,81826.0,81820.0,0.244438]
[1743694727141,0.012221,81824.0,81821.0,0.12290297]
[1743694727343,0.24443,81823.0,81821.0,0.12290297]
[1743694728068,0.244431,81823.0,81821.0,0.12290297]
[1743694729057,0.244426,81825.0,81821.0,0.12290297]
[1743694729228,0.244426,81825.0,81821.0,0.36733597]
[1743694729428,0.244426,81825.0,81821.0,0.12290297]
[1743694729628,0.012221,81825.0,81821.0,0.12290297]
[1743694729835,0.244429,81824.0,81821.0,0.12290297]
[1743694730115,0.012219,81834.0,81825.0,0.256639]
[1743694730283,0.244407,81831.0,81826.0,0.12290297]
[1743694730668,0.244413,81829.0,81826.0,0.12290297]
[1743694730872,0.244416,81828.0,81826.0,0.12290297]
[1743694731076,0.256638,81827.0,81826.0,0.12290297]
[1743694731575,0.244402,81833.0,81826.0,0.12290297]
[1743694731801,0.244404,81832.0,81827.0,0.01222]
[1743694732095,0.244406,81831.0,81827.0,0.256637]
[1743694732296,0.244411,81830.0,81826.0,0.36732397]
[1743694732472,0.244411,81830.0,81826.0,0.12290297]
[1743694732799,0.34,81848.0,81827.0,0.01222]
[1743694733015,0.244399,81834.0,81828.0,0.36731797]
[1743694733219,0.012219,81837.0,81830.0,0.01222]
[1743694733419,0.244401,81833.0,81829.0,0.244412]
[1743694733706,0.244409,81830.0,81829.0,0.12290297]
[1743694733909,0.012221,81822.0,81815.0,0.2520938]
[1743694734106,0.244436,81823.0,81819.0,0.24444]
[1743694734410,0.244436,81823.0,81820.0,0.12290297]
[1743694734614,0.012222,81816.0,81815.0,0.0076408]
[1743694734765,0.256672,81816.0,81810.0,0.244466]
[1743694734948,0.256667,81818.0,81813.0,0.12290297]
[1743694735174,0.244456,81814.0,81813.0,0.12290297]
[1743694736532,0.256673,81816.0,81808.0,0.244549]
[1743694736533,0.256694,81809.0,81808.0,8e-05]
[1743694737490,0.244469,81810.0,81808.0,8e-05]
[1743694737693,0.256688,81812.0,81808.0,8e-05]
[1743694738058,0.012221,81821.0,81810.0,0.012223]
[1743694738248,0.24446,81813.0,81811.0,0.12290297]
[1743694738747,0.012223,81812.0,81808.0,8e-05]
[1743694738948,0.256694,81809.0,81808.0,8e-05]
[1743694740787,0.012222,81818.0,81808.0,0.12298297]
[1743694741137,0.244464,81812.0,81809.0,0.12290297]
[1743694741486,0.256681,81813.0,81809.0,0.12290297]
[1743694741708,0.256657,81821.0,81813.0,0.244459]
[1743694741906,0.256675,81815.0,81813.0,0.12290297]
[1743694742267,0.244471,81809.0,81808.0,8e-05]
[1743694742384,0.256694,81809.0,81808.0,8e-05]
[1743694743539,0.62904597,81809.0,81808.0,1e-06]
[1743694743710,0.92291697,81809.0,81808.0,1e-06]
[1743694744258,0.94456884,81809.0,81808.0,1e-06]
[1743694745243,0.94456884,81809.0,81796.0,8e-05]
[1743694745244,0.645919,81801.0,81800.0,1e-06]
[1743694745460,0.81472197,81801.0,81800.0,1e-06]
[1743694745629,0.645932,81797.0,81796.0,1e-06]
[1743694745834,0.645932,81797.0,81772.0,0.0076408]
[1743694745835,0.596779,81782.0,81772.0,0.0076408]
[1743694746032,0.71968197,81782.0,81772.0,0.0076408]
[1743694746458,0.71968197,81782.0,81765.0,0.00904439]
[1743694746663,0.77742761,81782.0,81781.0,1e-06]
[1743694749406,0.77742761,81782.0,81749.0,4e-05]
[1743694749407,0.256874,81752.0,81749.0,4e-05]
[1743694751041,0.012231,81755.0,81749.0,4e-05]
[1743694751244,0.012232,81752.0,81749.0,4e-05]
[1743694751443,0.24464,81753.0,81749.0,4e-05]
[1743694751647,0.012231,81756.0,81750.0,0.012232]
[1743694751863,0.24464,81753.0,81749.0,4e-05]
[1743694752399,0.01223,81766.0,81757.0,0.012231]
[1743694752600,0.012232,81752.0,81749.0,4e-05]
[1743694753761,0.25687,81753.0,81749.0,4e-05]
[1743694753967,0.244639,81754.0,81750.0,0.244647]
[1743694754278,0.244639,81753.0,81750.0,0.244648]
[1743694754518,0.244626,81758.0,81750.0,0.244648]
[1743694754519,0.01223,81764.0,81754.0,0.012231]
[1743694754722,0.49821618,81782.0,81751.0,0.004]
[1743694754723,0.012231,81756.0,81751.0,0.004]
[1743694754924,0.012231,81759.0,81753.0,0.256868]
[1743694755197,0.34,81766.0,81762.0,0.24461]
[1743694755466,0.256833,81765.0,81760.0,0.244618]
[1743694755807,0.244616,81761.0,81758.0,0.244621]
[1743694755991,0.012231,81759.0,81754.0,0.36753597]
[1743694756192,0.256848,81760.0,81756.0,0.244629]
[1743694756448,0.256835,81765.0,81757.0,0.012231]
[1743694756748,0.012229,81768.0,81760.0,0.256848]
[1743694756888,0.244606,81765.0,81761.0,0.244615]
[1743694757088,0.256826,81768.0,81761.0,0.01223]
[1743694757313,0.2446,81766.0,81763.0,0.244608]
[1743694757530,0.2446,81766.0,81762.0,0.25684]
[1743694757936,0.244609,81763.0,81758.0,0.12290297]
[1743694758136,0.244612,81762.0,81758.0,0.12290297]
[1743694758342,0.244616,81761.0,81758.0,0.12290297]
[1743694758659,0.244621,81759.0,81758.0,0.12290297]
[1743694759003,0.01223,81760.0,81754.0,0.012231]
[1743694759217,0.25683,81766.0,81761.0,0.01223]
[1743694759546,0.256823,81768.0,81761.0,0.256843]
[1743694759750,0.2446,81767.0,81763.0,0.244606]
[1743694759960,0.012229,81772.0,81760.0,0.01223]
[1743694759961,0.244558,81780.0,81775.0,0.244571]
[1743694760120,0.012228,81775.0,81770.0,0.012229]
[1743694760339,0.012229,81772.0,81764.0,0.12290297]
[1743694760544,0.244599,81767.0,81760.0,0.01223]
[1743694760747,0.244606,81764.0,81761.0,0.12290297]
[1743694760945,0.01223,81765.0,81761.0,0.12290297]
[1743694761191,0.012229,81769.0,81765.0,0.244603]
[1743694761399,0.256826,81768.0,81763.0,0.256837]
[1743694761602,0.244592,81769.0,81766.0,0.2446]
[1743694761818,0.2446,81767.0,81763.0,0.13513297]
[1743694762073,0.012229,81768.0,81763.0,0.12290297]
[1743694762204,0.256843,81762.0,81758.0,4e-05]
[1743694762410,0.244606,81764.0,81760.0,0.244618]
[1743694762634,0.244606,81764.0,81760.0,0.36752097]
[1743694762844,0.244588,81771.0,81767.0,0.244597]
[1743694763070,0.244603,81766.0,81761.0,0.244612]
[1743694763368,0.244609,81763.0,81760.0,0.36751797]
[1743694763566,0.244597,81768.0,81764.0,0.01223]
[1743694763722,0.244594,81768.0,81764.0,0.244605]
[1743694763925,0.244579,81773.0,81765.0,0.13513297]
[1743694764125,0.244588,81770.0,81767.0,0.244597]
[1743694764424,0.244574,81775.0,81772.0,0.244581]
[1743694764624,0.244574,81775.0,81772.0,0.244582]
[1743694764967,0.244579,81774.0,81771.0,0.244584]
[1743694765111,0.012228,81776.0,81773.0,0.244577]
[1743694765112,0.244571,81776.0,81773.0,0.244577]
[1743694765342,0.244571,81776.0,81768.0,0.012229]
[1743694765343,0.012228,81775.0,81768.0,0.012229]
[1743694765549,0.012227,81781.0,81772.0,0.012229]
[1743694765767,0.34,81783.0,81777.0,0.012228]
[1743694765975,0.244561,81781.0,81778.0,0.12290297]
[1743694766177,0.34,81783.0,81778.0,0.12290297]
[1743694766376,0.244561,81779.0,81778.0,0.12290297]
[1743694766599,0.256789,81779.0,81778.0,0.12290297]
[1743694766985,0.256804,81774.0,81773.0,4e-05]
[1743694767781,0.244574,81775.0,81773.0,4e-05]
[1743694768000,0.244576,81774.0,81773.0,4e-05]
[1743694768339,0.256804,81774.0,81773.0,4e-05]
[1743694768689,0.34,81795.0,81774.0,0.012228]
[1743694768887,0.244553,81782.0,81779.0,0.256783]
[1743694769087,0.352227,81786.0,81783.0,0.244547]
[1743694769283,0.34,81784.0,81781.0,0.244555]
[1743694769508,0.012225,81793.0,81782.0,0.012227]
[1743694769731,0.244534,81789.0,81785.0,0.24454]
[1743694769890,0.244535,81788.0,81785.0,0.24454]
[1743694770087,0.244535,81788.0,81783.0,0.012227]
[1743694770289,0.244525,81793.0,81785.0,0.012227]
[1743694770514,0.244526,81791.0,81787.0,0.244531]
[1743694770712,0.012226,81791.0,81785.0,0.244534]
[1743694770916,0.012226,81790.0,81786.0,0.244538]
[1743694771112,0.256757,81790.0,81786.0,0.244538]
[1743694771481,0.244532,81789.0,81786.0,0.244538]
[1743694771632,0.244531,81790.0,81786.0,0.244538]
[1743694772232,0.244531,81790.0,81787.0,0.244536]
[1743694772419,0.012224,81802.0,81796.0,0.244508]
[1743694772736,0.012224,81802.0,81788.0,0.12290297]
[1743694772737,0.244465,81811.0,81804.0,0.244483]
[1743694772951,0.244472,81809.0,81805.0,0.12290297]
[1743694773160,0.244472,81809.0,81805.0,0.36738597]
[1743694773378,0.256673,81816.0,81810.0,0.012223]
[1743694773587,0.012222,81818.0,81810.0,0.256691]
[1743694773786,0.244432,81823.0,81818.0,0.012222]
[1743694773986,0.25711704,81828.0,81824.0,0.012221]
[1743694774213,0.25663,81830.0,81825.0,0.256644]
[1743694774423,0.012219,81834.0,81825.0,0.012221]
[1743694774623,0.012219,81835.0,81826.0,0.012221]
[1743694774825,0.004,81839.0,81832.0,0.01222]
[1743694774979,0.248382,81839.0,81835.0,0.244394]
[1743694775185,0.244385,81838.0,81836.0,0.12290297]
[1743694775628,0.012219,81837.0,81836.0,0.12290297]
[1743694776564,0.004,81839.0,81838.0,0.012219]
[1743694776705,0.004,81839.0,81838.0,0.13512197]
[1743694776919,0.004,81839.0,81838.0,0.12290297]
[1743694777147,0.004,81839.0,81838.0,0.13512197]
[1743694777949,0.004,81839.0,81838.0,0.12290297]
[1743694778170,0.004,81839.0,81838.0,0.13512197]
[1743694781355,0.004,81839.0,81838.0,0.13756541]
[1743694781694,0.004,81839.0,81838.0,0.13512197]
[1743694781897,0.004,81839.0,81838.0,0.13756541]
[1743694782128,0.004,81839.0,81838.0,0.13512197]
[1743694782550,0.004,81839.0,81838.0,0.13756541]
[1743694782771,0.004,81839.0,81838.0,0.13760541]
[1743694783401,0.004,81839.0,81838.0,0.13780541]
[1743694783804,0.004,81839.0,81838.0,0.15234626]
[1743694784005,0.004,81839.0,81838.0,0.20224626]
[1743694784205,0.004,81839.0,81838.0,0.20224595]
[1743694785075,0.004,81839.0,81838.0,0.35592595]
[1743694785302,0.004,81839.0,81838.0,0.35348282]
[1743694785706,0.004,81839.0,81838.0,0.18526197]
[1743694785911,0.004,81839.0,81838.0,0.33894197]
[1743694786124,0.004,81839.0,81838.0,0.35348282]
[1743694787759,0.004,81839.0,81838.0,0.59786782]
[1743694790595,0.004,81869.0,81868.0,0.256509]
[1743694790810,0.004,81869.0,81868.0,0.37941197]
[1743694793755,0.004,81869.0,81868.0,0.37961197]
[1743694794257,0.004,81869.0,81868.0,0.37965197]
[1743694795679,0.004,81869.0,81868.0,0.12314297]
[1743694795914,0.016214,81869.0,81868.0,0.12314297]
[1743694796122,0.260506,81869.0,81868.0,0.00024]
[1743694796293,0.004,81869.0,81868.0,0.00024]
[1743694796906,0.248292,81869.0,81868.0,0.00024]
[1743694797047,0.004,81869.0,81868.0,0.00024]
[1743694797450,0.248292,81869.0,81868.0,0.00024]
[1743694797673,0.260506,81869.0,81868.0,0.00024]
[1743694797872,0.004,81869.0,81868.0,0.244535]
[1743694798131,0.004,81869.0,81868.0,0.37965197]
[1743694799058,0.012213,81879.0,81875.0,0.244273]
[1743694799259,0.34,81883.0,81880.0,0.244259]
[1743694799518,0.34,81883.0,81877.0,0.256481]
[1743694799850,0.244265,81878.0,81877.0,0.12290297]
[1743694800185,0.244288,81871.0,81868.0,0.00024]
[1743694800389,0.244277,81875.0,81871.0,0.244283]
[1743694800622,0.244277,81876.0,81872.0,0.12290297]
[1743694800827,0.244269,81877.0,81872.0,0.12290297]
[1743694801037,0.244274,81875.0,81872.0,0.12290297]
[1743694801245,0.244262,81880.0,81872.0,0.36718597]
[1743694801443,0.24427,81877.0,81872.0,0.36718597]
[1743694801640,0.244257,81881.0,81875.0,0.012213]
[1743694801866,0.244251,81883.0,81878.0,0.244265]
[1743694802028,0.24426,81880.0,81876.0,0.36717397]
[1743694802825,0.012213,81879.0,81876.0,0.12290297]
[1743694803055,0.256471,81882.0,81878.0,0.244265]
[1743694803227,0.244263,81879.0,81876.0,0.12290297]
[1743694803616,0.244277,81874.0,81872.0,4e-05]
[1743694803787,0.244262,81879.0,81872.0,4e-05]
[1743694804017,0.25648,81878.0,81872.0,4e-05]
[1743694804215,0.244274,81876.0,81872.0,4e-05]
[1743694804350,0.25648,81878.0,81872.0,4e-05]
[1743694804551,0.244274,81876.0,81872.0,4e-05]
[1743694804756,0.244268,81877.0,81874.0,0.244277]
[1743694804940,0.256494,81873.0,81872.0,4e-05]
[1743694805601,0.304394,81873.0,81872.0,4e-05]
[1743694809145,0.290465,81879.0,81872.0,0.012254]
[1743694809326,0.244271,81876.0,81872.0,4e-05]
[1743694809555,0.302655,81886.0,81874.0,0.012213]
[1743694809733,0.244244,81885.0,81878.0,0.012213]
[1743694809930,0.244247,81885.0,81881.0,0.244254]
[1743694810075,0.058412,81886.0,81879.0,0.012213]
[1743694810271,0.005,81916.0,81878.0,0.012213]
[1743694810272,0.24423,81890.0,81884.0,0.012212]
[1743694810496,0.05891,81894.0,81880.0,0.12290297]
[1743694810497,0.012212,81883.0,81880.0,0.12290297]
[1743694810701,0.256477,81880.0,81874.0,0.244275]
[1743694810906,0.012212,81880.0,81875.0,0.12290297]
[1743694811107,0.012212,81883.0,81875.0,0.12290297]
[1743694811108,0.244256,81882.0,81878.0,0.244265]
[1743694811310,0.244256,81882.0,81879.0,0.12290297]
[1743694811678,0.05891,81894.0,81887.0,0.012211]
[1743694811896,0.05891,81894.0,81889.0,0.244227]
[1743694812097,0.256432,81893.0,81889.0,0.244231]
[1743694812307,0.012211,81891.0,81883.0,0.012212]
[1743694812507,0.244232,81890.0,81885.0,0.244244]
[1743694812708,0.244235,81889.0,81884.0,0.244245]
[1743694812950,0.012211,81893.0,81883.0,0.37935997]
[1743694812951,0.244212,81896.0,81885.0,0.012212]
[1743694813152,0.01221,81896.0,81887.0,0.012211]
[1743694813324,0.01221,81896.0,81889.0,0.24423]
[1743694813325,0.256427,81895.0,81889.0,0.24423]
[1743694813688,0.256427,81895.0,81890.0,0.36713197]
[1743694813689,0.244218,81894.0,81890.0,0.36713197]
[1743694813986,0.01621,81899.0,81892.0,0.012211]
[1743694814187,0.004,81899.0,81898.0,0.256416]
[1743694814340,0.004,81899.0,81898.0,0.37931897]
[1743694814549,0.004,81899.0,81898.0,0.53271897]
[1743694816884,0.004,81899.0,81898.0,0.27630297]
[1743694817179,0.004,81899.0,81898.0,0.37931897]
[1743694818621,0.004,81899.0,81898.0,0.12290297]
[1743694818976,0.260413,81899.0,81898.0,0.12290297]
[1743694819183,0.004,81899.0,81898.0,0.12290297]
[1743694819589,0.260413,81899.0,81898.0,0.12290297]
[1743694819801,0.260413,81899.0,81881.0,0.012212]
[1743694819802,0.244233,81889.0,81881.0,0.012212]
[1743694820014,0.012211,81893.0,81882.0,0.13511497]
[1743694820213,0.244227,81891.0,81883.0,0.244249]
[1743694820414,0.244225,81892.0,81887.0,0.244237]
[1743694820637,0.244225,81892.0,81888.0,0.36713797]
[1743694820976,0.244225,81892.0,81889.0,0.244232]
[1743694821181,0.244213,81896.0,81890.0,0.12290297]
[1743694821359,0.244206,81898.0,81894.0,0.244217]
[1743694821563,0.248205,81899.0,81895.0,0.244215]
[1743694821758,0.004,81899.0,81897.0,0.244207]
[1743694821937,0.004,81899.0,81898.0,0.256416]
[1743694822563,0.004,81899.0,81897.0,0.01221]
[1743694822771,0.004,81899.0,81898.0,0.244206]
[1743694822942,0.004,81899.0,81898.0,0.37931897]
[1743694824672,0.004,81899.0,81898.0,0.12290297]
[1743694824874,0.004,81899.0,81898.0,0.13511297]
[1743694825077,0.01221,81897.0,81890.0,0.012211]
[1743694825284,0.244214,81896.0,81891.0,0.12290297]
[1743694825457,0.244214,81896.0,81892.0,0.244222]
[1743694825655,0.248204,81899.0,81872.0,4e-05]
[1743694825656,0.012212,81883.0,81872.0,4e-05]
[1743694825869,0.303475,81879.0,81878.0,0.10885814]
[1743694827464,0.244262,81879.0,81878.0,0.10885814]
[1743694827662,0.256475,81879.0,81878.0,0.10885814]
[1743694827847,0.34,81882.0,81878.0,0.10885814]
[1743694828134,0.34,81882.0,81878.0,0.244263]
[1743694828135,0.584256,81882.0,81878.0,0.244263]
[1743694828355,0.584256,81882.0,81875.0,0.256487]